Cogmind - Beta 15 @@@ ROGUE MODE // 2025.09.06 @ 14:58:45 Player: shapeshifter Result: Destroyed by S-27 Virus with Autogun Performance ------------- Evolutions (6) 3000 Regions Visited (6) 1200 Robots Destroyed (27) 135 Value Destroyed (916) 916 Prototype IDs (25) 500 Alien Tech Used (0) 0 Bonus (800) 800 TOTAL SCORE: 6551 Bonus ------- Registered with UFD 300 Met Optimus in HQ 500 Cogmind --------- Core Integrity 0/1150 Matter 25/300 Energy 98/100 System Corruption 16% Temperature Cool (0) Movement Core (50) Location -4/Factory Parts ------- > --- POWER (2) -------- (None) > --- PROPULSION (6) --- (None) > --- UTILITY (8) ------ Improved Signal Interpreter > --- WEAPON (3) ------- Lance > --- INVENTORY (5) ---- Angular Momentum Engine Meta Core Deep Structural Scanner Seismic Detector Improved Reaction Control System Peak State ------------ > --- POWER ------------ Light Angular Momentum Engine Hybrid Fission Core > --- PROPULSION ------- Overtuned Flexi-carbon Leg Overtuned Flexi-carbon Leg Armored Huge Wheel > --- UTILITY ---------- Scrap Suit Large Storage Unit Deep Structural Scanner Experimental Sensor Array Improved Signal Interpreter Improved Reaction Control System > --- WEAPON ----------- Gauss Rifle Hypervelocity Gauss Rifle Enhanced Gauss Cannon > --- INVENTORY -------- Meta Core Cooled Nuclear Pulse Thruster Cooled Nuclear Pulse Thruster Matter Compressor Improved Sensor Array Advanced Terrain Scanner Improved Weapon Cycler Makeshift ECM Suite Phase Shifter Improved Component Analysis Suite Overtuned Pulse Rifle Overtuned Pulse Rifle Improved EM Pulse Cannon Overtuned Railgun Gauss Cannon [Rating: 83] Favorites ----------- Power Ion Engine Engine Ion Engine Power Core Hybrid Fission Core Propulsion Subdweller Monowheel Treads Light Treads Leg Overtuned Flexi-carbon Leg Wheel Subdweller Monowheel Flight Unit Cooled Nuclear Pulse Thruster Utility Small Storage Unit Device Deep Structural Scanner Storage Small Storage Unit Processor Improved Signal Interpreter Weapon Gauss Rifle Energy Gun Subdweller Laser Energy Cannon Improved EM Pulse Cannon Ballistic Gun Gauss Rifle Ballistic Cannon Gauss Cannon Slashing Weapon Ripper Piercing Weapon Lance Build | -11 -10 -10 -7 -7 -5 -4 ------- Run | Yrd Mat Sub Rec Scr Fac Fac Slots Evolved 12 | . . . . . 10 2 Power 1 | . . . . . 1 . Propulsion 4 | . . . . . 3 1 Utility 6 | . . . . . 5 1 Weapon 1 | . . . . . 1 . Parts Attached 68 | 8 . 16 1 10 13 20 Power 10 | 2 . 2 . 2 1 3 Engine 6 | 2 . 2 . 1 . 1 Core 4 | . . . . 1 1 2 Reactor . | . . . . . . . Propulsion 21 | 2 . 4 . 4 3 8 Treads 2 | 2 . . . . . . Leg 5 | . . . . 3 2 . Wheel 9 | . . 4 . 1 . 4 Hover . | . . . . . . . Flight 5 | . . . . . 1 4 Utility 13 | 2 . 2 . 2 5 2 Device 10 | 1 . 2 . 1 4 2 Storage 2 | 1 . . . 1 . . Processor 1 | . . . . . 1 . Hackware . | . . . . . . . Protection . | . . . . . . . Artifact . | . . . . . . . Weapon 24 | 2 . 8 1 2 4 7 Energy Gun 5 | 1 . 2 . . 1 1 Energy Cannon 3 | . . 2 1 . . . Ballistic Gun 11 | 1 . 2 . 2 1 5 Ballistic Cannon 3 | . . 1 . . 2 . Launcher . | . . . . . . . Special Weapon . | . . . . . . . Impact Weapon . | . . . . . . . Slashing Weapon 1 | . . 1 . . . . Piercing Weapon 1 | . . . . . . 1 Special Melee Weapon . | . . . . . . . Unidentified Prototypes 2 | . . . . . 1 1 Parts Lost 29 | . . 6 . . 2 21 Power 2 | . . . . . . 2 Propulsion 14 | . . 2 . . 1 11 Utility 4 | . . 1 . . . 3 Weapon 9 | . . 3 . . 1 5 Highest Loss Streak 11 | . . 2 . . 1 11 To Critical Strikes . | . . . . . . . Average Backups 9 | 3 4 6 7 10 14 10 Power 1 | . 1 1 2 . . . Propulsion 1 | 1 2 1 . 1 1 2 Utility 2 | . . 1 2 3 5 3 Weapon 3 | 1 1 2 2 3 5 3 Tool/Special . | . . . . . . . Unused Backups 35 | . . 5 . 15 6 9 Power 3 | . . . . 2 . 1 Propulsion 5 | . . 2 . 3 . . Utility 15 | . . 2 . 3 6 4 Weapon 8 | . . 1 . 5 . 2 Tool/Special 4 | . . . . 2 . 2 Average Slot Usage (%) 81 | . 100 97 100 77 74 40 Engine 8 | . 14 14 14 7 4 . Core 2 | . . . . 3 3 5 Treads 5 | . 28 14 . . . . Leg 7 | . . . . 15 10 3 Wheel 9 | . . 13 28 7 4 3 Device 13 | . 14 13 14 9 22 11 Storage 11 | . 14 14 14 14 5 3 Processor 1 | . . . . . 4 5 Energy Gun 2 | . 14 7 . . . . Energy Cannon 5 | . . 6 8 6 . . Ballistic Gun 8 | . 14 7 14 11 7 2 Ballistic Cannon 1 | . . 2 . . 4 . Peak Build Rating 83 | 7 7 16 16 35 83 72 Average Rating 26 | 4 7 11 16 21 74 44 On Entrance 19 | . 7 7 16 16 35 53 Naked Turns . | . . . . . . . Heaviest Build 69 | 14 14 23 22 42 69 64 Greatest Support 64 | 40 40 40 20 28 46 64 Greatest Overweight (x) 7 | . . 1 1 7 2 4 Average Overweight (x) . | . . . . . 1 . Largest Inventory Capacity 15 | 8 8 8 8 15 15 15 Average Capacity 11 | 7 8 8 8 13 15 11 Most Carried 15 | 6 4 8 8 15 15 15 Average Carried 9 | 4 4 6 8 11 14 10 Final Capacity 15 | 8 8 8 8 15 15 5 Final Carried 15 | 4 4 8 8 15 15 5 Class Distribution -------------------- 71% | Mutant 11% | Scavenger-Mutant 10% | Infiltrator-Skirmisher 4% | Infiltrator-Mutant Dominant Class ---------------- Mutant | -10/Materials Mutant | -10/Subcaves Mutant | -7/Recycling Mutant | -7/Scraptown Infiltrator-Skirmisher | -5/Factory Mutant | -4/Factory Resources | -11 -10 -10 -7 -7 -5 -4 ----------- Run | Yrd Mat Sub Rec Scr Fac Fac Matter Collected 1405 | 316 . 441 . 161 165 322 Remotely . | . . . . . . . Salvage Created 1022 | 116 . 412 . . 186 308 Parts 53 | 4 . 31 . . 8 10 Haulers Intercepted . | . . . . . . . Recyclers Shooed 2 | 1 . . . . . 1 Parts Field Recycled . | . . . . . . . Retrieved Matter . | . . . . . . . Parts Self-Destructed 15 | . . 15 . . . . Prevented . | . . . . . . . Kills | -11 -10 -10 -7 -7 -5 -4 ------- Run | Yrd Mat Sub Rec Scr Fac Fac Combat Hostiles Destroyed 19 | . . 13 . . 3 3 Guns 8 | . . 3 . . 2 3 Cannons 11 | . . 10 . . 1 . Classes Destroyed 8 | 2 . 3 . . 3 . Builder 3 | . . . . . 1 2 Tunneler 1 | 1 . . . . . . Recycler 2 | 1 . . . . . 1 Turret 2 | . . 2 . . . . Swarmer 4 | . . 4 . . . . Sentry 2 | . . . . . 1 1 Programmer 4 | . . . . . 2 2 Subdweller 9 | . . 9 . . . . Best Kill Streak 3 | 2 . 3 . . 2 2 Combat Bots Only 3 | . . 3 . . 1 2 Max Kills in Single Turn 1 | 1 . 1 . . 1 1 Gunslinging . | . . . . . . . Exploded . | . . . . . . . Melee . | . . . . . . . Uniques/NPCs Destroyed . | . . . . . . . Combat | -11 -10 -10 -7 -7 -5 -4 -------- Run | Yrd Mat Sub Rec Scr Fac Fac Hostile Shots Fired 518 | . . 131 . . 75 312 Missed 200 | . . 47 . . 29 124 Hits 318 | . . 84 . . 46 188 Projectile 318 | . . 84 . . 46 188 AOE 4 | . . 4 . . . . Critical Strikes 10 | . . 1 . . 1 8 Damage Taken 5092 | . . 1062 . . 809 3221 Core 1443 | . . 175 . . 114 1154 Absorbed by Shields 92 | . . . . . . 92 Regen/Repaired (Parts) 10 | . . . . . 10 . Core Remaining (%) 72 | 100 . . . 30 88 . Volleys Fired 167 | 12 . 95 . . 29 31 Largest 3 | 1 . 2 . . 3 3 Hottest 130 | 20 . 130 . . 106 105 Shots Fired 244 | 12 . 130 . . 52 50 Gun 151 | 12 . 66 . . 23 50 Cannon 93 | . . 64 . . 29 . Launcher . | . . . . . . . Special . | . . . . . . . Kinetic 175 | 12 . 73 . . 52 38 Thermal 60 | . . 48 . . . 12 Explosive . | . . . . . . . Electromagnetic 9 | . . 9 . . . . Robot Hit Streak 21 | 5 . 21 . . 8 10 Robot Miss Streak 4 | 2 . 4 . . 4 4 Penetration Max . | . . . . . . . Secondary Targets . | . . . . . . . Shots Hit Robots 129 | 9 . 58 . . 24 38 Core Hits 45 | 3 . 24 . . 6 12 Critical Kills 1 | . . . . . 1 . Critical Parts Destroyed 3 | . . . . . 2 1 Critical Strikes 10 | . . 1 . . 5 4 Burn 1 | . . . . . . 1 Destroy 4 | . . . . . 3 1 Blast 3 | . . 1 . . 2 . Impale 2 | . . . . . . 2 Melee Attacks 9 | . . 3 . . . 6 Impact . | . . . . . . . Slashing 3 | . . 3 . . . . Piercing 6 | . . . . . . 6 Sneak Attacks 3 | . . . . . . 3 Combat Hostiles . | . . . . . . . Follow-up Attacks . | . . . . . . . Damage Inflicted 3232 | 117 . 1248 . . 544 1323 Guns 1845 | 117 . 551 . . 247 930 Cannons 994 | . . 697 . . 297 . Explosions . | . . . . . . . Melee 344 | . . . . . . 344 Ramming 49 | . . . . . . 49 Kinetic 1742 | 117 . 378 . . 544 703 Thermal 954 | . . 727 . . . 227 Explosive . | . . . . . . . Electromagnetic 143 | . . 143 . . . . Impact . | . . . . . . . Slashing . | . . . . . . . Piercing 344 | . . . . . . 344 Highest Corruption 16 | . . . . . 4 16 Average Corruption 5 | . . . . . 2 11 Corruption Purged . | . . . . . . . Corruption Blocked . | . . . . . . . Effects 21 | . . . . . 7 14 Message Errors 4 | . . . . . 3 1 Matter Fused 5 | . . . . . 1 4 Heat Flow Errors 2 | . . . . . . 2 Energy Discharges 1 | . . . . . . 1 Data Loss (minor) 2 | . . . . . 1 1 Data Loss (major) 1 | . . . . . . 1 Alerts 1 | . . . . . . 1 Misdirections 3 | . . . . . . 3 Weapon Failures 2 | . . . . . 2 . Overload Shots . | . . . . . . . Overflow Damage 48 | . . 4 . . 35 9 Projectiles 39 | . . 4 . . 35 . Explosions . | . . . . . . . Melee 9 | . . . . . . 9 Knockbacks 5 | . . 3 . . 1 1 Impact 1 | . . . . . . 1 Kinetic 4 | . . 3 . . 1 . Secondary . | . . . . . . . Self-Inflicted Damage 11 | . . . . . . 11 Shots . | . . . . . . . Rammed 5 | . . . . . . 5 Targets Rammed 9 | . . . . . . 9 Kicked 4 | . . . . . . 4 Crushed . | . . . . . . . Highest Temperature 302 | . . 289 . . 72 302 Average Temperature 69 | . . 56 . . 26 125 Received Heat Transfer 819 | . . 546 . . 90 183 Siege Activations . | . . . . . . . Martial Activations . | . . . . . . . Shielding Activations . | . . . . . . . Robots Disrupted . | . . . . . . . Combat Hostiles . | . . . . . . . Robots Corrupted . | . . . . . . . Combat Hostiles . | . . . . . . . Parts Fried . | . . . . . . . Impact Corruptions . | . . . . . . . Robots Melted . | . . . . . . . Combat Hostiles . | . . . . . . . Parts Melted 5 | . . 1 . . . 4 Heat Transferred 1629 | . . 979 . . . 650 Parts Sabotaged . | . . . . . . . Parts Stolen . | . . . . . . . Parts Stripped . | . . . . . . . Power Chain Reactions . | . . . . . . . Alert | -11 -10 -10 -7 -7 -5 -4 ------- Run | Yrd Mat Sub Rec Scr Fac Fac Maximum Alert Level . | . . . . . . . Low Security (%) 100 | 100 100 . 100 . 100 100 Level 1 . | . . . . . . . Level 2 . | . . . . . . . Level 3 . | . . . . . . . Level 4 . | . . . . . . . Level 5 . | . . . . . . . High Security . | . . . . . . . Max Security . | . . . . . . . Peak Influence 199 | 10 . . 69 . 37 199 Initial 69 | . . . 69 . . . Average 15 | 1 . . 50 . 5 30 Influence Increases 850 | 10 . 285 . . 142 413 Destroy 0b10 Robot/C 240 | . . 120 . . 60 60 Destroy 0b10 Robot/NC 30 | 10 . . . . 5 15 Destroy Leader 40 | . . . . . 20 20 Disable Machine 15 | . . . . . 15 . Destroy Structure 60 | . . . . . 42 18 Partial Spotted 15 | . . . . . . 15 Lose Combat Pursuer 450 | . . 165 . . . 285 Influence Decreases 654 | 10 . 140 116 29 142 217 Entered New Map 105 | . . . 76 29 . . Time Decay 441 | 10 . 130 40 . 132 129 Lost Part 108 | . . 10 . . 10 88 Squads Dispatched 13 | . . . . . 8 5 Investigation 7 | . . . . . 5 2 Extermination 4 | . . . . . 2 2 Reinforcement 2 | . . . . . 1 1 Assault . | . . . . . . . Garrison . | . . . . . . . Intercept . | . . . . . . . Searches Triggered . | . . . . . . . Construction Impeded . | . . . . . . . Haulers Reinforced 1 | . . . . . . 1 Active Scanning Responses . | . . . . . . . Cargo Convoy Interrupts . | . . . . . . . Stealth | -11 -10 -10 -7 -7 -5 -4 --------- Run | Yrd Mat Sub Rec Scr Fac Fac Distress Signals 4 | . . . . . 4 . Communications Jammed . | . . . . . . . Distress Signals . | . . . . . . . Times Spotted 83 | . 1 17 . . 26 39 Peak Tracking Total 11 | . 1 6 . . 6 11 Tactical Retreats 23 | . . 5 . . 9 9 Traps | -11 -10 -10 -7 -7 -5 -4 ------- Run | Yrd Mat Sub Rec Scr Fac Fac Traps Triggered 2 | . . . . . 1 1 Indirectly . | . . . . . . . Trap Hack Attempts . | . . . . . . . Triggered . | . . . . . . . Disarmed . | . . . . . . . Reprogrammed . | . . . . . . . Reused . | . . . . . . . Traps Extracted . | . . . . . . . Installed . | . . . . . . . Triggered . | . . . . . . . Machines | -11 -10 -10 -7 -7 -5 -4 ---------- Run | Yrd Mat Sub Rec Scr Fac Fac Machines Disabled 4 | . . 3 . . 1 . Max in Single Turn 1 | . . 1 . . 1 . Machines Repaired . | . . . . . . . Machines Dismantled . | . . . . . . . Machines Sabotaged . | . . . . . . . Overloaded Fab Kills . | . . . . . . . Hacking | -11 -10 -10 -7 -7 -5 -4 --------- Run | Yrd Mat Sub Rec Scr Fac Fac Machines Accessed 17 | . . 2 2 5 7 1 Terminals 1 | . . . 1 . . . Fabricators . | . . . . . . . Repair Stations . | . . . . . . . Recycling Units 7 | . . . 1 . 5 1 Scanalyzers . | . . . . . . . Garrison Access 2 | . . . . . 2 . Total Hacks 60 | . . 4 4 33 16 3 Successful 46 | . . 4 3 33 6 . Failed 14 | . . . 1 . 10 3 Catastrophic 2 | . . . . . 1 1 Database Lockouts . | . . . . . . . Manual 15 | . . . 2 . 10 3 Terminals 2 | . . . 2 . . . Fabricators . | . . . . . . . Repair Stations . | . . . . . . . Recycling Units 16 | . . . 2 . 11 3 Scanalyzers . | . . . . . . . Garrison Access 5 | . . . . . 5 . Terminal Hacks 37 | . . 4 . 33 . . Record 30 | . . 3 . 27 . . Robot Analysis 5 | . . . . 5 . . Proto ID Catalog 2 | . . 1 . 1 . . Fabricator Hacks . | . . . . . . . Repair Station Hacks . | . . . . . . . Recycling Unit Hacks 3 | . . . 2 . 1 . Report Inventory 1 | . . . 1 . . . Retrieve Matter 1 | . . . . . 1 . Retrieve Components 1 | . . . 1 . . . Scanalyzer . | . . . . . . . Garrison Access Hacks . | . . . . . . . Unauthorized Hacks 6 | . . . 1 . 5 . Terminals 1 | . . . 1 . . . Botnet 1 | . . . 1 . . . Fabricators . | . . . . . . . Repair Stations . | . . . . . . . Recycling Units 5 | . . . . . 5 . Fedlink 5 | . . . . . 5 . Scanalyzers . | . . . . . . . Garrison Access . | . . . . . . . Data Cores Recovered . | . . . . . . . Used . | . . . . . . . Hacking Detections 8 | . . . 2 . 5 1 Full Trace Events 1 | . . . . . . 1 Feedback Events . | . . . . . . . Feedback Blocked . | . . . . . . . Robot Schematics Acquired . | . . . . . . . Robots Built . | . . . . . . . Authchips . | . . . . . . . Time . | . . . . . . . Total Robot Build Rating . | . . . . . . . Part Schematics Acquired . | . . . . . . . Parts Built . | . . . . . . . Authchips . | . . . . . . . Time . | . . . . . . . Total Part Build Rating . | . . . . . . . Parts Repaired . | . . . . . . . Time . | . . . . . . . Parts Recycled . | . . . . . . . Recycled Matter . | . . . . . . . Retrieved Matter . | . . . . . . . Retrieved Components 1 | . . . 1 . . . Parts Scanalyzed . | . . . . . . . Part Schematics Acquired . | . . . . . . . Parts Damaged . | . . . . . . . Bothacking | -11 -10 -10 -7 -7 -5 -4 ------------ Run | Yrd Mat Sub Rec Scr Fac Fac Used RIF Installer . | . . . . . . . Robots Hacked . | . . . . . . . Non-combat . | . . . . . . . Combat . | . . . . . . . Robot Hacks Applied . | . . . . . . . Relay Couplers Released . | . . . . . . . Fabnet Peak Effective % . | . . . . . . . Robots Rewired . | . . . . . . . Allies Hacked . | . . . . . . . Hacks Repelled . | . . . . . . . Allies | -11 -10 -10 -7 -7 -5 -4 -------- Run | Yrd Mat Sub Rec Scr Fac Fac Total Allies . | . . . . . . . Largest Group . | . . . . . . . Highest-Rated Group . | . . . . . . . Highest-Rated Ally . | . . . . . . . Total Orders . | . . . . . . . Ally Attacks . | . . . . . . . Total Damage . | . . . . . . . Kills . | . . . . . . . Allies Corrupted . | . . . . . . . Allies Melted . | . . . . . . . Intel | -11 -10 -10 -7 -7 -5 -4 ------- Run | Yrd Mat Sub Rec Scr Fac Fac Active Infowar (turns) 3444 | 7 85 787 . 1258 903 404 Sensors 1175 | . . . . . 843 332 Structural 2420 | . . . . 1258 903 259 Seismic 879 | 7 85 787 . . . . ECM 963 | . . . . . 646 317 Robot Analysis Total 5 | . . . . 5 . . Derelict Logs Recovered 6 | . . 1 . 5 . . Drone Launches . | . . . . . . . Drone Recoveries . | . . . . . . . Exploration | -11 -10 -10 -7 -7 -5 -4 ------------- Run | Yrd Mat Sub Rec Scr Fac Fac Turns Passed 6476 | 108 85 2283 92 2432 903 573 Spaces Moved 4468 | 51 46 1510 78 1502 655 626 Core 220 | 17 . . . 188 . 15 Treads 732 | 34 46 652 . . . . Legs 1151 | . . . . 892 190 69 Wheels 1948 | . . 858 78 422 465 125 Hover . | . . . . . . . Flight 417 | . . . . . . 417 Fastest Speed 34 | 50 160 110 110 100 90 34 Average Speed 125 | 123 160 131 116 148 116 64 Slowest Speed 400 | 160 160 160 120 400 130 315 Overloaded Moves . | . . . . . . . Propulsion Burnouts . | . . . . . . . Robots Hopped . | . . . . . . . Potential Cave-ins . | . . . . . . . Cave-ins Triggered . | . . . . . . . Exploration Rate (%) 34 | 4 9 80 13 88 26 20 Regions Visited 6 Branch Regions 3 Pre-discovered Areas 12 | . . 2 . 9 1 . Known Exits Taken 1 | . . . . . 1 . Unknown Exits Taken 5 | 1 1 1 1 1 . . Scrap Searched 11 | . . 5 . 6 . . Spaces Dug 18 | . . 1 . . 13 4 Terrain Destroyed 34 | . . 1 . . 21 12 Melee . | . . . . . . . Projectile 34 | . . 1 . . 21 12 AOE . | . . . . . . . Terrain Rammed . | . . . . . . . Walls Destroyed . | . . . . . . . Machines Disabled . | . . . . . . . Actions | -11 -10 -10 -7 -7 -5 -4 --------- Run | Yrd Mat Sub Rec Scr Fac Fac Total 5112 | 83 58 1671 79 1722 750 749 Wait 213 | 3 13 6 . 142 24 25 Move 4462 | 50 45 1509 77 1501 654 626 Hop . | . . . . . . . Pick Up 93 | 10 . 21 . 32 14 16 Fast Attach 11 | 1 . 2 1 3 1 3 Attach 46 | 6 . 5 . 6 10 19 Detach 10 | . . 1 . 3 3 3 Swap 25 | 1 . 13 . 6 5 . Drop 67 | . . 16 1 29 10 11 Fire 167 | 12 . 95 . . 29 31 Melee 9 | . . 3 . . . 6 Ram 5 | . . . . . . 5 Kick 4 | . . . . . . 4 Crush . | . . . . . . . Escape Stasis . | . . . . . . . Rewire . | . . . . . . . Trap . | . . . . . . . Miscellaneous . | . . . . . . . Route ------- -11/Scrapyard -10/Materials -10/Subcaves (discovered 2 exits: [*Mat] / *Rec) -7/Recycling -7/Scraptown (discovered 2 exits: *Fac x2) -5/Factory (discovered 6 exits: *Fac x4 / Upp x2) -4/Factory (discovered 1 exit: *Upp) History --------- Turn | Location | Event 6 | -11/Scrapyard | Discovered new exit (range 15) 109 | -11/Scrapyard | Entered Materials 185 | -10/Materials | Discovered new exit (range 6) 194 | -10/Materials | Entered Subcaves 334 | -10/Subcaves | Build established: Mutant 1202 | -10/Subcaves | Learned location of Mines (-10) 1322 | -10/Subcaves | Discovered new exit (range 14) 1595 | -10/Subcaves | Core integrity fell below 50% 1683 | -10/Subcaves | A swath of the cavern ceiling suddenly collapsed 1698 | -10/Subcaves | Build established: Scavenger-Mutant 1850 | -10/Subcaves | Discovered new exit (range 16) 1935 | -10/Subcaves | Visited Clippyterm 1938 | -10/Subcaves | Learned Factory stockpile data 1993 | -10/Subcaves | Shifting Twisted Machinery released Sub. Optics 2027 | -10/Subcaves | Shifting Twisted Machinery released Sub. Monowheel 2075 | -10/Subcaves | Learned location of Zion (-6) 2075 | -10/Subcaves | Met a Zionite searching for "candidates" 2189 | -10/Subcaves | Visited 4L-MR0's lab 2204 | -10/Subcaves | Found Meta Core 2462 | -10/Subcaves | Build established: Mutant 2477 | -10/Subcaves | Entered Recycling 2542 | -7/Recycling | Scanned before Scraplab entrance 2559 | -7/Recycling | Entered Scraplab 2568 | -7/Recycling | Discovered new exit (range 2) 2569 | -7/Recycling | Entered Scraptown 2895 | -7/Scraptown | Scanned Subdweller tech in exchange for log data 2903 | -7/Scraptown | Learned Research emergency access door positions 2907 | -7/Scraptown | Learned location of Testing (-2) 2911 | -7/Scraptown | Learned location of Warlord (-4) 2915 | -7/Scraptown | Learned Factory terminal intel 2919 | -7/Scraptown | Learned Factory trap positions 2937 | -7/Scraptown | Discovered new exit (range 13) 3029 | -7/Scraptown | Visited Supply Room 3071 | -7/Scraptown | Visited Fellowship of the Rings 3098 | -7/Scraptown | Visited UFD Registry 3098 | -7/Scraptown | Registered with UFD as "Plasmadrive" 3139 | -7/Scraptown | Visited Junk Repository 3166 | -7/Scraptown | Visited Analyses Database 3249 | -7/Scraptown | Delivered Scrap Shield to a Scientist 3280 | -7/Scraptown | Visited Junk Repository 3331 | -7/Scraptown | Visited Abandonware Association 3345 | -7/Scraptown | Learned abandonware demo "REPAIR.EXE" 3345 | -7/Scraptown | Learned abandonware demo "SHUTEYE.EXE" 3347 | -7/Scraptown | Learned abandonware demo "OVRCLOCK.EXE" 3366 | -7/Scraptown | Visited Modified Component R&D 3437 | -7/Scraptown | Visited Scrap Suit Storage 3442 | -7/Scraptown | Found Scrap Suit 3469 | -7/Scraptown | Visited Science Guys 3510 | -7/Scraptown | Visited Cartography Club 3560 | -7/Scraptown | Learned location of Upper Caves (-5) 3560 | -7/Scraptown | Learned location of Armory (-4) 3560 | -7/Scraptown | Learned location of Quarantine (-3) 3560 | -7/Scraptown | Learned 8 Materials zone layouts 3560 | -7/Scraptown | Learned 12 Materials zone layouts 3560 | -7/Scraptown | Learned 16 Factory zone layouts 3560 | -7/Scraptown | Learned 24 Factory zone layouts 3560 | -7/Scraptown | Learned 20 Factory zone layouts 3560 | -7/Scraptown | Learned 8 Access zone layouts 3560 | -7/Scraptown | Learned 16 Lower Caves zone layouts 3560 | -7/Scraptown | Learned 16 Upper Caves zone layouts 3560 | -7/Scraptown | Learned location of 3 exits from Lower Caves 3560 | -7/Scraptown | Learned location of 2 exits from Proximity Caves 3588 | -7/Scraptown | Found Deep Structural Scanner 3660 | -7/Scraptown | Visited TADAMA 3677 | -7/Scraptown | Visited Cyclists 3686 | -7/Scraptown | Entered Cyclist Reading Room 4164 | -7/Scraptown | Heard Great Nut preacher, LISTEN AND RECITE! 4565 | -7/Scraptown | Visited Infowarlord's Domain 4572 | -7/Scraptown | Found Exp. Sensor Array 4784 | -7/Scraptown | Discovered new exit (range 10) 4943 | -7/Scraptown | Met Optimus 4943 | -7/Scraptown | Accepted into 0bPrime 5001 | -7/Scraptown | Entered Factory 5001 | -5/Factory | Evolved 10 slots: Power x1, Propulsion x3, Utility x5, Weapon x1 5002 | -5/Factory | Identified exit to Factory 5002 | -5/Factory | Identified exit to Upper Caves 5003 | -5/Factory | Loaded intel: 110 trap records 5005 | -5/Factory | Loaded intel: 26 terminal locations 5341 | -5/Factory | Loaded intel: 8 recycling unit locations 5473 | -5/Factory | Learned location of Protoforge (-3) 5518 | -5/Factory | Build established: Infiltrator-Skirmisher 5904 | -5/Factory | Entered another Factory area 5904 | -4/Factory | Evolved 2 slots: Propulsion x1, Utility x1 6201 | -4/Factory | System corruption reached 10% 6206 | -4/Factory | Lost 3 parts (1n2w) 6255 | -4/Factory | Core integrity fell below 50% 6295 | -4/Factory | Lost 11 parts (2p4n2u3w) 6359 | -4/Factory | Discovered new exit (range 7) 6362 | -4/Factory | Identified exit to Upper Caves 6395 | -4/Factory | Core integrity fell below 20% 6416 | -4/Factory | Lost 4 parts (3n1u) 6477 | -4/Factory | Destroyed by S-27 Virus with Autogun Last Messages --------------- (Impale). 06412_ U-05 Engineer destroyed. 06413_ ALERT: Potential suspicious activity detected, Programmers report to Factory Zone 3N. 06415_ Acquired 12 matter. 06419_ Slug penetrates Wall. 06429_ K-01 Serf cleans the Nuclear Reactor. 06452_ Acquired Seismic Detector. 06452_ K-01 Serf cleans the Subcomponent Replicator. 06458_ K-01 Serf cleans the Fabricator. 06461_ &T9JSQBYXV60=59CN4GY>Z